Cogmind - Beta 12 @@@ ROGUE MODE // 2024.02.13 @ 20:53:08 Player: Remuluson2 Result: System corrupted Performance ------------- Evolutions (1) 500 Regions Visited (2) 400 Robots Destroyed (54) 270 Value Destroyed (1146) 1146 Prototype IDs (1) 20 Alien Tech Used (0) 0 Bonus (59) 59 TOTAL SCORE: 2395 Bonus ------- High Alert Combat Kills 59 Cogmind --------- Core Integrity 0/400 Matter 161/300 Energy 37/100 System Corruption 101% Temperature Cool (0) Movement Treading (160) Location -9/Materials Parts ------- > --- POWER (2) -------- (None) > --- PROPULSION (3) --- Light Treads Light Treads > --- UTILITY (2) ------ Medium Storage Unit Terrain Scanner > --- WEAPON (2) ------- Small Laser EMP Blaster > --- INVENTORY (10) --- Light Treads Light Treads Heat Sink Tractor Beam Assault Rifle Light Assault Rifle EMP Blaster EMP Blaster Peak State ------------ > --- POWER ------------ Ion Engine Light Ion Engine > --- PROPULSION ------- Light Treads Light Treads Aluminum Leg > --- UTILITY ---------- Heat Sink Medium Storage Unit > --- WEAPON ----------- Improved Medium Laser EMP Blaster > --- INVENTORY -------- Light Treads Aluminum Leg Compact Wheel Tractor Beam Small Laser Assault Rifle EMP Blaster EMP Blaster EMP Blaster [Rating: 13] Favorites ----------- Power Ion Engine Engine Ion Engine Propulsion Light Treads Treads Light Treads Leg Aluminum Leg Utility Medium Storage Unit Device Heat Sink Storage Medium Storage Unit Protection Light Armor Plating Weapon EMP Blaster Energy Gun EM Pulse Gun Ballistic Gun Light Assault Rifle Ballistic Cannon Improved Light Cannon Launcher EMP Blaster Build | -11 -10 -9 ------- Run | Jun Mat Mat Slots Evolved 2 | . . 2 Power 1 | . . 1 Propulsion 1 | . . 1 Utility . | . . . Weapon . | . . . Parts Attached 50 | 6 14 30 Power 6 | 1 2 3 Engine 6 | 1 2 3 Core . | . . . Reactor . | . . . Propulsion 16 | 2 3 11 Treads 12 | . 3 9 Leg 4 | 2 . 2 Wheel . | . . . Hover . | . . . Flight . | . . . Utility 12 | 1 3 8 Device 8 | . 2 6 Storage 2 | 1 1 . Processor . | . . . Hackware . | . . . Protection 2 | . . 2 Artifact . | . . . Weapon 16 | 2 6 8 Energy Gun 6 | 2 1 3 Energy Cannon . | . . . Ballistic Gun 2 | . . 2 Ballistic Cannon 3 | . 3 . Launcher 5 | . 2 3 Special Weapon . | . . . Impact Weapon . | . . . Slashing Weapon . | . . . Piercing Weapon . | . . . Special Melee Weapon . | . . . Unidentified Prototypes 1 | . . 1 Corrupted Parts 19 | . . 19 System Corruption 101 | . . 101 Parts Lost 5 | . 3 2 Power 3 | . 2 1 Propulsion 1 | . . 1 Utility . | . . . Weapon 1 | . 1 . Highest Loss Streak 1 | . 1 1 To Critical Strikes . | . . . Average Slot Usage (%) 97 | . 99 93 Engine 15 | . 13 18 Treads 24 | . 25 23 Leg 4 | . 2 7 Device 10 | . 13 4 Storage 12 | . 14 11 Protection 2 | . . 5 Energy Gun 2 | . 3 1 Ballistic Cannon 11 | . 18 . Launcher 11 | . 6 20 Naked Turns . | . . . Heaviest Build 31 | 13 31 31 Greatest Support 60 | 20 40 60 Greatest Overweight (x) 3 | . 1 3 Average Overweight (x) . | . . . Largest Inventory Capacity 10 | 8 10 10 Average Capacity 9 | 6 9 10 Most Carried 10 | 8 10 10 Average Carried 8 | 4 9 8 Final Capacity 10 | 8 10 10 Final Carried 10 | 6 10 8 Class Distribution -------------------- 65% | Mutant 34% | Scavenger-Mutant Dominant Class ---------------- Mutant | -10/Materials Scavenger-Mutant | -9/Materials Resources | -11 -10 -9 ----------- Run | Jun Mat Mat Matter Collected 912 | 192 259 461 Remotely 105 | . . 105 Salvage Created 1801 | . 651 1150 Parts 118 | . 40 78 Haulers Intercepted 4 | . 2 2 Recyclers Shooed 4 | . 1 3 Parts Field Recycled 28 | . 28 . Retrieved Matter 235 | . 235 . Parts Self-Destructed . | . . . Prevented . | . . . Kills | -11 -10 -9 ------- Run | Jun Mat Mat Combat Hostiles Destroyed 32 | . 13 19 Melee 6 | . 6 . Guns 1 | . 1 . Cannons 6 | . 6 . AOE 18 | . . 18 Classes Destroyed 10 | . 8 2 Worker 2 | . 1 1 Builder 7 | . 1 6 Hauler 4 | . 2 2 Recycler 2 | . 1 1 Operator 2 | . 2 . Watcher 5 | . 3 2 Swarmer 10 | . 3 7 Grunt 17 | . 10 7 Brawler 1 | . . 1 Sentry 4 | . . 4 Best Kill Streak 8 | . 5 8 Combat Bots Only 5 | . 5 4 Max Kills in Single Turn 3 | . 2 3 Gunslinging . | . . . Exploded 3 | . . 3 Melee 1 | . 1 . Uniques/NPCs Destroyed . | . . . Combat | -11 -10 -9 -------- Run | Jun Mat Mat Damage Taken 1410 | . 806 604 Core 216 | . 125 91 Absorbed by Shields . | . . . Core Remaining (%) 75 | 100 50 . Volleys Fired 88 | . 43 45 Largest 2 | . 2 2 Hottest 79 | . 79 66 Shots Fired 150 | . 81 69 Gun 10 | . 10 . Cannon 69 | . 69 . Launcher 71 | . 2 69 Special . | . . . Kinetic 69 | . 69 . Thermal . | . . . Explosive . | . . . Electromagnetic 81 | . 12 69 Robot Hit Streak 13 | . 4 13 Robot Miss Streak 7 | . 7 2 Penetration Max . | . . . Secondary Targets . | . . . Shots Hit Robots 79 | . 36 43 Core Hits 66 | . 27 39 Critical Kills . | . . . Critical Parts Destroyed . | . . . Critical Strikes 1 | . 1 . Blast 1 | . 1 . Melee Attacks . | . . . Impact . | . . . Slashing . | . . . Piercing . | . . . Sneak Attacks . | . . . Combat Hostiles . | . . . Follow-up Attacks . | . . . Damage Inflicted 2724 | . 980 1744 Guns 77 | . 77 . Cannons 668 | . 668 . Explosions 1786 | . 48 1738 Melee . | . . . Ramming 193 | . 187 6 Kinetic 668 | . 668 . Thermal 187 | . . 187 Explosive . | . . . Electromagnetic 1676 | . 125 1551 Impact . | . . . Slashing . | . . . Piercing . | . . . Highest Corruption 101 | . . 101 Average Corruption 41 | . . 41 Corruption Purged . | . . . Corruption Blocked . | . . . Effects 38 | . . 38 Message Errors 7 | . . 7 Matter Fused 4 | . . 4 Heat Flow Errors 2 | . . 2 Energy Discharges 1 | . . 1 Data Loss (minor) 6 | . . 6 Data Loss (major) 2 | . . 2 Misfires 4 | . . 4 Alerts 1 | . . 1 Weapon Failures 11 | . . 11 Overload Shots . | . . . Overflow Damage 54 | . 35 19 Projectiles 17 | . 17 . Explosions 37 | . 18 19 Melee . | . . . Knockbacks 10 | . 10 . Impact 1 | . 1 . Kinetic 9 | . 9 . Secondary . | . . . Self-Inflicted Damage 240 | . 22 218 Shots 20 | . 2 18 Rammed 60 | . 56 4 Targets Rammed 67 | . 63 4 Kicked . | . . . Crushed 7 | . 7 . Highest Temperature 286 | . 286 205 Average Temperature 86 | . 102 62 Received Heat Transfer 423 | . 252 171 Effects 4 | . 4 . Energy Bleed 1 | . 1 . Interference 3 | . 3 . Siege Activations . | . . . Robots Corrupted 1 | . . 1 Combat Hostiles 1 | . . 1 Parts Fried 12 | . . 12 Impact Corruptions . | . . . Robots Melted . | . . . Combat Hostiles . | . . . Parts Melted . | . . . Heat Transferred 250 | . . 250 Parts Sabotaged . | . . . Parts Stolen . | . . . Parts Stripped . | . . . Power Chain Reactions 19 | . 1 18 Missiles Intercepted . | . . . Alert | -11 -10 -9 ------- Run | Jun Mat Mat Peak Influence 575 | . 286 575 Initial 46 | . . 46 Average 207 | . 122 377 Maximum Alert Level 2 | . 1 2 Low Security (%) 60 | 100 83 18 Level 1 21 | . 16 32 Level 2 17 | . . 49 Level 3 . | . . . Level 4 . | . . . Level 5 . | . . . High Security . | . . . Max Security . | . . . Squads Dispatched 5 | . 3 2 Investigation 1 | . 1 . Extermination . | . . . Reinforcement 4 | . 2 2 Assault . | . . . Garrison . | . . . Intercept . | . . . Searches Triggered . | . . . Construction Impeded 1 | . . 1 Haulers Reinforced . | . . . Active Scanning Responses . | . . . Cargo Convoy Interrupts . | . . . Stealth | -11 -10 -9 --------- Run | Jun Mat Mat Distress Signals 7 | . 3 4 Communications Jammed . | . . . Distress Signals . | . . . Times Spotted 50 | . 28 22 Peak Tracking Total 7 | . 7 5 Tactical Retreats 1 | . . 1 Traps | -11 -10 -9 ------- Run | Jun Mat Mat Traps Triggered 5 | . 2 3 Indirectly 1 | . . 1 Trap Hack Attempts . | . . . Triggered . | . . . Disarmed . | . . . Reprogrammed . | . . . Reused . | . . . Traps Extracted . | . . . Installed . | . . . Triggered . | . . . Machines | -11 -10 -9 ---------- Run | Jun Mat Mat Machines Disabled 7 | . 3 4 Max in Single Turn 1 | . 1 1 Machines Repaired . | . . . Machines Sabotaged . | . . . Overloaded Fab Kills . | . . . Hacking | -11 -10 -9 --------- Run | Jun Mat Mat Machines Accessed 1 | . 1 . Terminals 1 | . 1 . Fabricators . | . . . Repair Stations . | . . . Recycling Units . | . . . Scanalyzers . | . . . Garrison Access . | . . . Total Hacks 4 | . 4 . Successful 4 | . 4 . Failed . | . . . Catastrophic . | . . . Database Lockouts . | . . . Manual . | . . . Terminals 4 | . 4 . Fabricators . | . . . Repair Stations . | . . . Recycling Units . | . . . Scanalyzers . | . . . Garrison Access . | . . . Terminal Hacks 4 | . 4 . Locate Traps 1 | . 1 . Transport Status 1 | . 1 . Investigation Status 2 | . 2 . Fabricator Hacks . | . . . Repair Station Hacks . | . . . Recycling Unit Hacks . | . . . Scanalyzer . | . . . Garrison Access Hacks . | . . . Unauthorized Hacks . | . . . Terminals . | . . . Fabricators . | . . . Repair Stations . | . . . Recycling Units . | . . . Scanalyzers . | . . . Garrison Access . | . . . Data Cores Recovered . | . . . Used . | . . . Hacking Detections 1 | . 1 . Full Trace Events . | . . . Feedback Events . | . . . Feedback Blocked . | . . . Robot Schematics Acquired . | . . . Robots Built . | . . . Authchips . | . . . Time . | . . . Total Robot Build Rating . | . . . Part Schematics Acquired . | . . . Parts Built . | . . . Authchips . | . . . Time . | . . . Total Part Build Rating . | . . . Parts Repaired . | . . . Time . | . . . Parts Recycled . | . . . Recycled Matter . | . . . Retrieved Matter . | . . . Retrieved Components . | . . . Parts Scanalyzed . | . . . Part Schematics Acquired . | . . . Parts Damaged . | . . . Bothacking | -11 -10 -9 ------------ Run | Jun Mat Mat Used RIF Installer . | . . . Robots Hacked . | . . . Non-combat . | . . . Combat . | . . . Robot Hacks Applied . | . . . Relay Couplers Released . | . . . Fabnet Peak Effective % . | . . . Robots Rewired . | . . . Allies Hacked . | . . . Hacks Repelled . | . . . Allies | -11 -10 -9 -------- Run | Jun Mat Mat Total Allies . | . . . Largest Group . | . . . Highest-Rated Group . | . . . Highest-Rated Ally . | . . . Total Orders . | . . . Ally Attacks . | . . . Total Damage . | . . . Kills . | . . . Allies Corrupted . | . . . Allies Melted . | . . . Intel | -11 -10 -9 ------- Run | Jun Mat Mat Robot Analysis Total . | . . . Derelict Logs Recovered . | . . . Drone Launches . | . . . Drone Recoveries . | . . . Exploration | -11 -10 -9 ------------- Run | Jun Mat Mat Turns Passed 1832 | 82 1096 654 Spaces Moved 813 | 59 490 264 Core 6 | 6 . . Treads 698 | . 435 263 Legs 109 | 53 55 1 Wheels . | . . . Hover . | . . . Flight . | . . . Fastest Speed 50 | 50 120 160 Average Speed 156 | 112 160 160 Slowest Speed 330 | 120 190 330 Overloaded Moves . | . . . Propulsion Burnouts . | . . . Robots Hopped . | . . . Cave-ins Triggered . | . . . Exploration Rate (%) 34 | 5 60 39 Regions Visited 2 Branch Regions . Pre-discovered Areas . | . . . Known Exits Taken . | . . . Unknown Exits Taken 2 | 1 1 . Scrap Searched . | . . . Spaces Dug . | . . . Terrain Destroyed 66 | . 8 58 Melee . | . . . Projectile 2 | . 2 . AOE 64 | . 6 58 Terrain Rammed . | . . . Walls Destroyed . | . . . Machines Disabled . | . . . Actions | -11 -10 -9 --------- Run | Jun Mat Mat Total 1171 | 72 680 419 Wait 92 | . 53 39 Move 811 | 58 489 264 Hop . | . . . Pick Up 34 | 8 11 15 Fast Attach 15 | 4 4 7 Attach 18 | 2 3 13 Detach 2 | . . 2 Swap 17 | . 7 10 Drop 27 | . 7 20 Fire 88 | . 43 45 Melee . | . . . Ram . | . . . Kick . | . . . Crush 67 | . 63 4 Escape Stasis . | . . . Rewire . | . . . Trap . | . . . Miscellaneous . | . . . Route ------- -11/Junkyard -10/Materials (discovered 2 exits: *Mat / [*Min]) -9/Materials (discovered 2 exits: [*Mat] / [*Min]) History --------- Turn | Location | Event 8 | -11/Junkyard | Discovered new exit (range 14) 83 | -11/Junkyard | Entered Materials 305 | -10/Materials | Build established: Mutant 436 | -10/Materials | Discovered new exit (range 9) 1168 | -10/Materials | Discovered new exit (range 5) 1179 | -10/Materials | Entered another Materials area 1179 | -9/Materials | Evolved 2 slots: Power x1, Propulsion x1 1404 | -9/Materials | Discovered new exit (range 7) 1457 | -9/Materials | System corruption reached 10% 1465 | -9/Materials | System corruption reached 30% 1488 | -9/Materials | Build established: Scavenger-Mutant 1728 | -9/Materials | Discovered new exit (range 16) 1834 | -9/Materials | System corrupted Last Messages --------------- 01804_ Integrated Corrupted Terrain Scanner (+3). 01804_ Complication: System interference. 01804_ EMP Blaster temporarily disabled. 01805_ Dropped Terrain Scanner. 01807_ Acquired Corrupted Terrain Scanner. 01807_ Integrated Corrupted Terrain Scanner (+3). 01807_ Complication: Ion Engine rejected. 01809_ Dropped Terrain Scanner. 01813_ Acquired Corrupted Terrain Scanner. 01814_ Integrated Corrupted Terrain Scanner (+3). 01814_ Corrupted Terrain Scanner temporarily disabled. 01815_ Dropped Terrain Scanner. 01820_ 95H/I>G/Y<82=J:,ZKSTG#9SI30WQRCO#TO4 01828_ Acquired Corrupted Terrain Scanner. 01829_ Integrated Corrupted Terrain Scanner (+2). 01829_ Corrupted Terrain Scanner temporarily disabled. 01830_ Dropped Terrain Scanner. 01832_ Acquired Corrupted Terrain Scanner. 01833_ Integrated Corrupted Terrain Scanner (+4). 01834_ Cogmind system terminally corrupted. Map ----- +----------------------------------------------------+ | ?? ???????????????????????????????????? | | "" ????????????????????????????????????? | | "" ????????????????????????????????????? | | ""?????????????????????????????????????? | | ????????????? ????????????????????????? | | ?????????????? ????????????????????????? | | ##+##????????? ????????????????????????? | | ?????????? ????????????????????????? | | #?????###????? ????????????????????????? | | #???? #????? ????????????????????????? | | #??? #????? ????????????????????????? | | ##? #????# #???????????????????????? | | # #????# #???????????????#####???? | | # #????# +???????????????# #???? | | + #????# #???????????????# < #???? | | ############ #???????????????# #???? | | #?# # #???????????????# #???? | | ####" """ # #???????????????# #???? | | #" """ # #????############ #???? | | #" """ + #????# ## ##??? | | #T # #????# ! # #??? | | #" """ # #????# # #??? | | #" = " # #????# + #??? | | "" #" # #????# !!! # #??? | | "Y # # #????# !!!! % # = #??? | | "" #+###+#### ##???# **!@ ##]= ##??? | | ?? # = #???# ! ## #???? | | ##### !!%! #???############ #???? | | = #??### # #???? | | #########+### #????# # #???? | | # %% ## #???## [+ #???? | | # ## ###### [ # #???? | | # "" " = ## ######=% % = # #?#?? | | # ""S"" ## /% # #???? | | # """" ## ######=! # #???? | | # ## ###### # #???? | | #########+## #??############ #???? | | ??## #?????????????# #???? | | ??# #?????????????# #???? | | ###" % #?????????????? ???? | | = " [%##### ????????? ???? | | # ==##??############????????? #??? | | [[?# = #########???????????????? #??? | | [??# !#|* #???????????????? #??? | | ???+ /%! #????????????????#####??? | | ???# #!=[ #???????????????????????? | | ??## #########???????????????????????? | | ###= #??????????????????????????????? | | [ [[ #??????????????????????????????? | | == #??????????????????????????????? | +----------------------------------------------------+ Best States ------------- Heat Dissipation 38 Energy Generation 15 Energy Capacity 400 Matter Stores 300 Matter Capacity 300 Sight Range 16 Terrain Scan Density 10 Armor Coverage 150 Evasion (%) 55 Recoil Reduction 3 Item Schematics ----------------- None Robot Schematics ------------------ None Fabricated ------------ Nothing Alien Tech Used ----------------- None Achievements -------------- Fist Fight Use The Force Z1$+NX3F=JRE3_ZNQR Challenges ------------ None Game ------ Seed UltimateFluxThermoblaster Manual? 0 Play Time 00:27:23 Cumulative 12.4 hours Start 2024.02.13 @ 20:25:44 End 2024.02.13 @ 20:53:08 Sessions 1 Manual Loads 0 Difficulty Rogue Special Mode None Game No. 10 Rogue 10 Adventurer 0 Explorer 0 Win Type - Total 0 Types 0/0/0/0/0/0/0/0/0 Lore% 17 Gallery% 16 Achievement% 18 Wizard Run 0 Options --------- ASCII 0 Keyboard 0 Movement Numpad Keybinds 0 Fullscreen 1 Font 18/SmallcapsGlow Map View 76x50 Tactical HUD 1 Map Filters NONE Filters NONE Steam 1 RUN: 5a5d53cd-05ee-4571-b364-6f0119b5f6df